fUSD/lending_fUSD_20250823
["ID","MTS","AMOUNT","RATE_DAILY","PERIOD"]
[380963769,1755912819122,-466.47,0.0001863,2]
[380963770,1755912819132,-714.55,0.0001863,2]
[380963771,1755912819142,-511.98,0.0001863,2]
[380963772,1755912819151,-400.0,0.0001863,2]
[380963773,1755912819164,-483.0,0.0001863,2]
[380963774,1755912819173,-400.0,0.0001863,2]
[380963775,1755912819183,-638.96,0.0001863,2]
[380963776,1755912819193,-626.45,0.0001863,2]
[380963777,1755912819203,-789.4,0.0001863,2]
[380963778,1755912819212,-411.07,0.0001863,2]
[380963779,1755912819222,-459.86,0.0001863,2]
[380963780,1755912819232,-590.56,0.0001863,2]
[380963781,1755912819242,-7170.55,0.0001863,2]
[380963782,1755912819251,-798.6,0.0001863,2]
[380963783,1755912819261,-489.74,0.0001863,2]
[380963784,1755912819271,-568.83,0.0001863,2]
[380963785,1755912819281,-414.4,0.0001863,2]
[380963786,1755912819292,-755.36,0.0001863,2]
[380963787,1755912819302,-556.35,0.0001863,2]
[380963788,1755912819311,-522.88,0.0001863,2]
[380963789,1755912819321,-2114.53,0.0001863,2]
[380963790,1755912819331,-2594.59,0.0001863,2]
[380963791,1755912819341,-400.0,0.0001863,2]
[380963792,1755912819351,-446.5,0.0001863,2]
[380963793,1755912819361,-529.92,0.0001863,2]
[380963794,1755912819371,-705.67,0.0001863,2]
[380963795,1755912819381,-896.87,0.0001863,2]
[380963796,1755912819392,-400.0,0.0001863,2]
[380963797,1755912819402,-400.0,0.0001863,2]
[380963798,1755912819412,-741.74,0.0001863,2]
[380963799,1755912819425,-1094.77,0.0001863,2]
[380963800,1755912819434,-158.93922052,0.0001863,2]
[380963801,1755912819444,-869.76,0.0001863,2]
[380963802,1755912819454,-562.13,0.0001863,2]
[380963803,1755912819464,-437.77,0.0001863,2]
[380963804,1755912819474,-723.99,0.0001863,2]
[380963805,1755912819484,-1048.91,0.0001863,2]
[380963806,1755912819494,-541.27,0.0001863,2]
[380963807,1755912819504,-418.69,0.0001863,2]
[380963808,1755912819514,-963.36,0.0001863,2]
[380963809,1755912819524,-685.08,0.0001863,2]
[380963810,1755912819534,-4903.23,0.0001863,2]
[380963811,1755912819544,-614.11,0.0001863,2]
[380963812,1755912819555,-400.0,0.0001863,2]
[380963813,1755912819565,-530.85,0.0001863,2]
[380963814,1755912819575,-956.53,0.0001863,2]
[380963815,1755912819586,-459.80682824,0.0001863,2]
[380963816,1755912819596,-400.0,0.0001863,2]
[380963817,1755912819606,-508.77,0.0001863,2]
[380963818,1755912819616,-690.94,0.0001863,2]
[380963819,1755912819626,-781.78,0.0001863,2]
[380963820,1755912819636,-407.82,0.0001863,2]
[380963821,1755912819646,-573.49,0.0001863,2]
[380963822,1755912819656,-516.0,0.0001863,2]
[380963823,1755912819666,-400.0,0.0001863,2]
[380963824,1755912819676,-548.91,0.0001863,2]
[380963825,1755912819686,-400.0,0.0001863,2]
[380963826,1755912819696,-2566.25,0.0001863,2]
[380963827,1755912819706,-468.96,0.0001863,2]
[380963828,1755912819718,-947.84,0.0001863,2]
[380963829,1755912819728,-400.0,0.0001863,2]
[380963830,1755912819738,-659.68,0.0001863,2]
[380963831,1755912819748,-691.7,0.0001863,2]
[380963832,1755912819758,-1053.52,0.0001863,2]
[380963833,1755912819768,-1155.0,0.0001863,2]
[380963834,1755912819778,-557.81,0.0001863,2]
[380963835,1755912819788,-1327.17,0.0001863,2]
[380963836,1755912819799,-719.87,0.0001863,2]
[380963837,1755912819809,-532.88,0.0001863,2]
[380963838,1755912819819,-621.05,0.0001863,2]
[380963839,1755912819829,-482.24,0.0001863,2]
[380963840,1755912819839,-825.64,0.0001863,2]
[380963841,1755912819849,-786.36,0.0001863,2]
[380963842,1755912819859,-400.0,0.0001863,2]
[380963843,1755912819870,-508.4,0.0001863,2]
[380963844,1755912819880,-811.77,0.0001863,2]
[380963845,1755912819890,-448.05,0.0001863,2]
[380963846,1755912819900,-522.09,0.0001863,2]
[380963847,1755912819910,-471.12,0.0001863,2]
[380963848,1755912819920,-478.08,0.0001863,2]
[380963849,1755912819930,-400.0,0.0001863,2]
[380963850,1755912819940,-413.45,0.0001863,2]
[380963851,1755912819950,-1160.25,0.0001863,2]
[380963852,1755912819960,-400.0,0.0001863,2]
[380963853,1755912819970,-400.01,0.0001863,2]
[380963854,1755912819979,-1658.24,0.0001863,2]
[380963855,1755912819990,-876.0,0.0001863,2]
[380963856,1755912820001,-1082.57,0.0001863,2]
[380963857,1755912820011,-599.68,0.0001863,2]
[380963858,1755912820022,-400.0,0.0001863,2]
[380963859,1755912820032,-928.99,0.0001863,2]
[380963860,1755912820043,-576.13,0.0001863,2]
[380963861,1755912820053,-581.91,0.0001863,2]
[380963862,1755912820064,-535.34,0.0001863,2]
[380963863,1755912820074,-704.93,0.0001863,2]
[380963864,1755912820084,-909.17,0.0001863,2]
[380963865,1755912820094,-757.81,0.0001863,2]
[380963866,1755912820104,-629.77,0.0001863,2]
[380963867,1755912820115,-458.74,0.0001863,2]
[380963868,1755912820125,-400.0,0.0001863,2]
[380963869,1755912820135,-808.82,0.0001863,2]
[380963870,1755912820146,-677.9,0.0001863,2]
[380963871,1755912820156,-400.0,0.0001863,2]
[380963872,1755912820166,-1628.12,0.0001863,2]
[380963873,1755912820176,-556.37,0.0001863,2]
[380963874,1755912820186,-412.49,0.0001863,2]
[380963875,1755912820196,-562.56,0.0001863,2]
[380963876,1755912820206,-554.4,0.0001863,2]
[380963877,1755912820217,-442.39,0.0001863,2]
[380963878,1755912820227,-699.23,0.0001863,2]
[380963879,1755912820500,-627.55,0.0001863,2]
[380963880,1755912820512,-400.0,0.0001863,2]
[380963881,1755912820522,-475.41,0.0001863,2]
[380963882,1755912820532,-901.46,0.0001863,2]
[380963883,1755912820541,-618.33,0.0001863,2]
[380963884,1755912820552,-493.66,0.0001863,2]
[380963885,1755912820562,-1043.76,0.0001863,2]
[380963886,1755912820572,-400.0,0.0001863,2]
[380963887,1755912820582,-400.0,0.0001863,2]
[380963888,1755912820592,-491.94,0.0001863,2]
[380963889,1755912820601,-415.82,0.0001863,2]
[380963890,1755912820611,-682.29,0.0001863,2]
[380963891,1755912820621,-640.17,0.0001863,2]
[380963892,1755912820630,-427.73,0.0001863,2]
[380963893,1755912820640,-568.93,0.0001863,2]
[380963894,1755912820650,-468.97,0.0001863,2]
[380963895,1755912820659,-501.87,0.0001863,2]
[380963896,1755912820669,-537.21,0.0001863,2]
[380963897,1755912820679,-577.38,0.0001863,2]
[380963898,1755912820688,-620.18,0.0001863,2]
[380963899,1755912820697,-400.0,0.0001863,2]
[380963900,1755912820707,-773.99,0.0001863,2]
[380963901,1755912820716,-400.0,0.0001863,2]
[380963902,1755912820725,-400.0,0.0001863,2]
[380963903,1755912820735,-457.02,0.0001863,2]
[380963904,1755912820745,-1005.26,0.0001863,2]
[380963905,1755912820755,-400.0,0.0001863,2]
[380963906,1755912820765,-400.0,0.0001863,2]
[380963907,1755912820774,-407.11,0.0001863,2]
[380963908,1755912820784,-610.39,0.0001863,2]
[380963909,1755912820794,-646.19,0.0001863,2]
[380963910,1755912820804,-933.58,0.0001863,2]
[380963911,1755912820814,-431.04,0.0001863,2]
[380963912,1755912820823,-400.0,0.0001863,2]
[380963913,1755912820833,-605.05,0.0001863,2]
[380963914,1755912820842,-664.71,0.0001863,2]
[380963915,1755912820853,-938.83,0.0001863,2]
[380963916,1755912820863,-1070.54,0.0001863,2]
[380963917,1755912820873,-546.05,0.0001863,2]
[380963918,1755912820882,-410.97,0.0001863,2]
[380963919,1755912820892,-570.73,0.0001863,2]
[380963920,1755912820902,-490.42,0.0001863,2]
[380963921,1755912820912,-716.24,0.0001863,2]
[380963922,1755912820927,-400.0,0.0001863,2]
[380963923,1755912820937,-665.32,0.0001863,2]
[380963924,1755912820947,-697.95,0.0001863,2]
[380963925,1755912820957,-731.6,0.0001863,2]
[380963926,1755912820968,-400.0,0.0001863,2]
[380963927,1755912820978,-1401.51,0.0001863,2]
[380963928,1755912820988,-509.97,0.0001863,2]
[380963929,1755912820998,-400.0,0.0001863,2]
[380963930,1755912821008,-474.27,0.0001863,2]
[380963931,1755912821019,-1143.48,0.0001863,2]
[380963932,1755912821028,-633.21,0.0001863,2]
[380963933,1755912821038,-551.73,0.0001863,2]
[380963934,1755912821050,-1150.35,0.0001863,2]
[380963935,1755912821059,-803.81,0.0001863,2]
[380963936,1755912821070,-507.56,0.0001863,2]
[380963937,1755912821080,-1049.21,0.0001863,2]
[380963938,1755912821090,-709.31,0.0001863,2]
[380963939,1755912821099,-400.0,0.0001863,2]
[380963940,1755912821110,-400.0,0.0001863,2]
[380963941,1755912821120,-870.96,0.0001863,2]
[380963942,1755912821130,-640.94,0.0001863,2]
[380963943,1755912821140,-599.05,0.0001863,2]
[380963944,1755912821150,-267.0316168,0.0001863,2]
[380963945,1755912821160,-518.56,0.0001863,2]
[380963946,1755912821169,-878.26,0.0001863,2]
[380963947,1755912821180,-784.45,0.0001863,2]
[380963948,1755912821190,-1743.04,0.0001863,2]
[380963949,1755912821200,-671.68,0.0001863,2]
[380963950,1755912821210,-939.87,0.0001863,2]
[380963951,1755912821220,-538.86,0.0001863,2]
[380963952,1755912821230,-582.18,0.0001863,2]
[380963953,1755912821240,-983.76,0.0001863,2]
[380963954,1755912821250,-400.0,0.0001863,2]
[380963955,1755912821260,-743.59,0.0001863,2]
[380963956,1755912821269,-839.71,0.0001863,2]
[380963957,1755912821279,-706.05,0.0001863,2]
[380963958,1755912821288,-400.0,0.0001863,2]
[380963959,1755912821299,-1278.62,0.0001863,2]
[380963960,1755912821308,-890.17,0.0001863,2]
[380963961,1755912821318,-1021.93,0.0001863,2]
[380963962,1755912821331,-400.0,0.0001863,2]
[380963963,1755912821340,-649.66,0.0001863,2]
[380963964,1755912821350,-527.2,0.0001863,2]
[380963965,1755912821360,-784.4,0.0001863,2]
[380963966,1755912821370,-634.12,0.0001863,2]
[380963967,1755912821379,-971.12,0.0001863,2]
[380963968,1755912821389,-754.33,0.0001863,2]
[380963969,1755912821399,-726.51,0.0001863,2]
[380963970,1755912821409,-1154.79,0.0001863,2]
[380963971,1755912821421,-1099.97,0.0001863,2]
[380963972,1755912821431,-1157.08,0.0001863,2]
[380963973,1755912821440,-535.95,0.0001863,2]
[380963974,1755912821449,-691.37,0.0001863,2]
[380963975,1755912821459,-888.95,0.0001863,2]
[380963976,1755912821468,-1203.18,0.0001863,2]
[380963977,1755912821478,-656.19,0.0001863,2]
[380963978,1755912821487,-985.25,0.0001863,2]
[380963979,1755912821497,-807.2,0.0001863,2]
[380963980,1755912821506,-1439.09,0.0001863,2]
[380963981,1755912821516,-659.77,0.0001863,2]
[380963982,1755912821526,-488.34798375,0.0001863,2]
[380963983,1755912821535,-583.57,0.0001863,2]
[380963984,1755912821545,-731.16,0.0001863,2]
[380963985,1755912821554,-890.52,0.0001863,2]
[380963986,1755912821566,-766.72,0.0001863,2]
[380963987,1755912821576,-855.77,0.0001863,2]
[380963988,1755912821586,-400.0,0.0001863,2]
[380963989,1755912821595,-635.62,0.0001863,2]
[380963990,1755912821605,-986.02,0.0001863,2]
[380963991,1755912821614,-400.0,0.0001863,2]
[380963992,1755912821623,-963.55,0.0001863,2]
[380963993,1755912821632,-466.03,0.0001863,2]
[380963994,1755912821642,-482.07,0.0001863,2]
[380963995,1755912821651,-1494.7,0.0001863,2]
[380963996,1755912821661,-859.0,0.0001863,2]
[380963997,1755912821670,-507.72,0.0001863,2]
[380963998,1755912821680,-828.37,0.0001863,2]
[380963999,1755912821689,-777.58,0.0001863,2]
[380964000,1755912821699,-967.68,0.0001863,2]
[380964001,1755912821708,-400.0,0.0001863,2]
[380964002,1755912821718,-506.23,0.0001863,2]
[380964003,1755912821727,-479.67,0.0001863,2]
[380964004,1755912821737,-781.12,0.0001863,2]
[380964005,1755912821746,-755.98,0.0001863,2]
[380964006,1755912821756,-937.77,0.0001863,2]
[380964007,1755912821765,-585.32,0.0001863,2]
[380964008,1755912821774,-941.46,0.0001863,2]
[380964009,1755912821784,-979.86,0.0001863,2]
[380964010,1755912821793,-1039.23,0.0001863,2]
[380964011,1755912821803,-873.74,0.0001863,2]
[380964012,1755912821812,-545.13,0.0001863,2]
[380964013,1755912821822,-650.0,0.0001863,2]
[380964014,1755912821832,-400.0,0.0001863,2]
[380964015,1755912821842,-505.4,0.0001863,2]
[380964016,1755912821851,-792.76,0.0001863,2]
[380964017,1755912821861,-764.74,0.0001863,2]
[380964018,1755912821871,-822.02,0.0001863,2]
[380964019,1755912821881,-958.27,0.0001863,2]
[380964020,1755912821891,-455.77574345,0.0001863,2]
[380964021,1755912821900,-493.69,0.0001863,2]
[380964022,1755912821910,-400.0,0.0001863,2]
[380964023,1755912821920,-400.0,0.0001863,2]
[380964024,1755912821929,-550.01,0.0001863,2]
[380964025,1755912821939,-724.98,0.0001863,2]
[380964026,1755912821949,-400.0,0.0001863,2]
[380964027,1755912821959,-957.7,0.0001863,2]
[380964028,1755912821970,-712.18,0.0001863,2]
[380964029,1755912821979,-532.46,0.0001863,2]
[380964030,1755912821989,-484.95,0.0001863,2]
[380964031,1755912821999,-839.82,0.0001863,2]
[380964032,1755912822008,-400.0,0.0001863,2]
[380964033,1755912822017,-3061.19,0.0001863,2]
[380964034,1755912822027,-402.87,0.0001863,2]
[380964035,1755912822036,-668.01,0.0001863,2]
[380964036,1755912822045,-440.73,0.0001863,2]
[380964037,1755912822055,-400.0,0.0001863,2]
[380964038,1755912822065,-911.43,0.0001863,2]
[380964039,1755912822074,-931.59,0.0001863,2]
[380964040,1755912822083,-400.0,0.0001863,2]
[380964041,1755912822092,-585.39,0.0001863,2]
[380964042,1755912822101,-400.0,0.0001863,2]
[380964043,1755912822111,-631.42,0.0001863,2]
[380964044,1755912822121,-821.68,0.0001863,2]
[380964045,1755912822131,-464.46,0.0001863,2]
[380964046,1755912822141,-1000.0,0.00018642,2]
[380964047,1755912822151,-6705.13617038,0.00018679,2]
[380964048,1755912822160,-1000.0,0.00018683,2]
[380964049,1755912822170,-1000.0,0.00018702,2]
[380964050,1755912822180,-1000.0,0.00018704,2]
[380964051,1755912822190,-1425.0,0.00018718,2]
[380964052,1755912822200,-6953.22620868,0.00018734,2]
[380964053,1755912822210,-1000.0,0.00018761,2]
[380964054,1755912822220,-7210.49557841,0.00018789,2]
[380964055,1755912822230,-37190.0,0.000188,2]
[380964056,1755912822240,-235.47,0.000188,2]
[380964057,1755912822249,-235.47,0.000188,2]
[380964058,1755912822259,-235.47,0.000188,2]
[380964059,1755912822269,-235.47,0.000188,2]
[380964060,1755912822278,-235.47,0.000188,2]
[380964061,1755912822288,-235.47,0.000188,2]
[380964062,1755912822298,-235.47,0.000188,2]
[380964063,1755912822308,-235.47,0.000188,2]
[380964064,1755912822317,-235.47,0.000188,2]
[380964065,1755912822327,-235.47,0.000188,2]
[380964066,1755912822337,-235.47,0.000188,2]
[380964067,1755912822347,-235.47,0.000188,2]
[380964068,1755912822357,-235.47,0.000188,2]
[380964069,1755912822366,-235.47,0.000188,2]
[380964070,1755912822376,-235.47,0.000188,2]
[380964071,1755912822386,-235.47,0.000188,2]
[380964072,1755912822396,-235.47,0.000188,2]
[380964073,1755912822406,-235.47,0.000188,2]
[380964074,1755912822417,-235.47,0.000188,2]
[380964075,1755912822427,-235.47,0.000188,2]
[380964076,1755912822437,-235.47,0.000188,2]
[380964077,1755912822447,-235.47,0.000188,2]
[380964078,1755912822456,-235.47,0.000188,2]
[380964079,1755912822466,-235.47,0.000188,2]
[380964080,1755912822476,-235.47,0.000188,2]
[380964081,1755912822487,-235.47,0.000188,2]
[380964082,1755912822498,-235.47,0.000188,2]
[380964083,1755912822508,-235.47,0.000188,2]
[380964084,1755912822517,-235.47,0.000188,2]
[380964085,1755912822527,-235.47,0.000188,2]
[380964086,1755912822536,-235.47,0.000188,2]
[380964087,1755912822545,-235.47,0.000188,2]
[380964088,1755912822555,-235.47,0.000188,2]
[380964089,1755912822564,-235.47,0.000188,2]
[380964090,1755912822574,-235.47,0.000188,2]
[380964091,1755912822584,-235.47,0.000188,2]
[380964092,1755912822593,-235.47,0.000188,2]
[380964093,1755912822603,-235.47,0.000188,2]
[380964094,1755912822613,-235.47,0.000188,2]
[380964095,1755912822622,-235.47,0.000188,2]
[380964096,1755912822631,-235.47,0.000188,2]
[380964097,1755912822641,-235.47,0.000188,2]
[380964098,1755912822650,-235.47,0.000188,2]
[380964099,1755912822659,-235.47,0.000188,2]
[380964100,1755912822684,-235.47,0.000188,2]
[380964101,1755912822700,-235.47,0.000188,2]
[380964102,1755912822720,-235.47,0.000188,2]
[380964103,1755912822740,-235.47,0.000188,2]
[380964104,1755912822755,-235.47,0.000188,2]
[380964105,1755912822775,-235.47,0.000188,2]
[380964106,1755912822794,-235.47,0.000188,2]
[380964107,1755912822815,-235.47,0.000188,2]
[380964108,1755912822834,-235.47,0.000188,2]
[380964109,1755912822855,-235.47,0.000188,2]
[380964110,1755912822874,-235.47,0.000188,2]
[380964111,1755912822889,-235.47,0.000188,2]
[380964112,1755912822906,-235.47,0.000188,2]
[380964113,1755912822922,-235.47,0.000188,2]
[380964114,1755912822940,-235.47,0.000188,2]
[380964115,1755912822962,-235.47,0.000188,2]
[380964116,1755912822978,-235.47,0.000188,2]
[380964117,1755912822995,-235.47,0.000188,2]
[380964118,1755912823012,-235.47,0.000188,2]
[380964119,1755912823029,-235.47,0.000188,2]
[380964120,1755912823045,-235.47,0.000188,2]
[380964121,1755912823061,-235.47,0.000188,2]
[380964122,1755912823076,-235.47,0.000188,2]
[380964123,1755912823092,-235.47,0.000188,2]
[380964124,1755912823108,-235.47,0.000188,2]
[380964125,1755912823126,-235.47,0.000188,2]
[380964126,1755912823141,-235.47,0.000188,2]
[380964127,1755912823156,-235.47,0.000188,2]
[380964128,1755912823171,-235.47,0.000188,2]
[380964129,1755912823186,-235.47,0.000188,2]
[380964130,1755912823201,-235.47,0.000188,2]
[380964131,1755912823216,-235.47,0.000188,2]
[380964132,1755912823231,-235.47,0.000188,2]
[380964133,1755912823248,-235.47,0.000188,2]
[380964134,1755912823265,-235.47,0.000188,2]
[380964135,1755912823280,-235.47,0.000188,2]
[380964136,1755912823295,-235.47,0.000188,2]
[380964137,1755912823310,-235.47,0.000188,2]
[380964138,1755912823324,-235.47,0.000188,2]
[380964139,1755912823339,-235.47,0.000188,2]
[380964140,1755912823353,-235.47,0.000188,2]
[380964141,1755912823369,-235.47,0.000188,2]
[380964142,1755912823384,-235.47,0.000188,2]
[380964143,1755912823399,-235.47,0.000188,2]
[380964144,1755912823416,-235.47,0.000188,2]
[380964145,1755912823432,-235.47,0.000188,2]
[380964146,1755912823446,-235.47,0.000188,2]
[380964147,1755912823460,-235.47,0.000188,2]
[380964148,1755912823475,-235.47,0.000188,2]
[380964149,1755912823488,-235.47,0.000188,2]
[380964150,1755912823504,-235.47,0.000188,2]
[380964151,1755912823519,-235.47,0.000188,2]
[380964152,1755912823533,-235.47,0.000188,2]
[380964153,1755912823548,-235.47,0.000188,2]
[380964154,1755912823562,-235.47,0.000188,2]
[380964155,1755912823574,-1000.0,0.00018821,2]
[380964156,1755912823589,-1425.0,0.00018841,2]
[380964157,1755912823602,-7477.28391481,0.00018844,2]
[380964158,1755912823615,-500.0,0.00018852,2]
[380964159,1755912823629,-1000.0,0.0001888,2]
[380964160,1755912823643,-549.67,0.00018886,2]
[380964161,1755912823656,-1425.0,0.00018892,2]
[380964162,1755912823671,-151.0,0.00018897,2]
[380964163,1755912823685,-151.0,0.00018897,2]
[380964164,1755912823699,-151.0,0.00018897,2]
[380964165,1755912823714,-7753.94341966,0.00018899,2]
[380964166,1755912823728,-200000.0,0.000189,2]
[380964167,1755912823741,-350.67,0.000189,6]
[380964168,1755912823754,-1036.33772184,0.000189,2]
[380964169,1755912823768,-976.1219651,0.00018903,7]
[380964170,1755912823781,-733.0,0.00018904,2]
[380964171,1755912823795,-1367.0,0.00018904,2]
[380964172,1755912823811,-500.0,0.00018904,2]
[380964173,1755912823826,-2066.0,0.00018904,2]
[380964174,1755912823841,-500.0,0.00018904,2]
[380964175,1755912823856,-1471.92,0.00018904,2]
[380964176,1755912823870,-404.24,0.00018904,2]
[380964177,1755912823885,-400.0,0.00018904,2]
[380964178,1755912823898,-957.1,0.00018904,2]
[380964179,1755912823912,-500.5,0.00018904,2]
[380964180,1755912823926,-630.13,0.00018904,2]
[380964181,1755912823940,-484.29,0.00018904,2]
[380964182,1755912823953,-691.2,0.00018904,2]
[380964183,1755912823966,-400.0,0.00018904,2]
[380964184,1755912823981,-564.0,0.00018904,2]
[380964185,1755912823995,-922.66,0.00018904,2]
[380964186,1755912824009,-1309.75,0.00018904,2]
[380964187,1755912824025,-410.64,0.00018904,2]
[380964188,1755912824040,-400.0,0.00018904,2]
[380964189,1755912824054,-814.35,0.00018904,2]
[380964190,1755912824069,-703.72,0.00018904,2]
[380964191,1755912824083,-400.0,0.00018904,2]
[380964192,1755912824097,-400.0,0.00018904,2]
[380964193,1755912824111,-416.84,0.00018904,2]
[380964194,1755912824125,-552.81,0.00018904,2]
[380964195,1755912824139,-565.22,0.00018904,2]
[380964196,1755912824153,-457.37,0.00018904,2]
[380964197,1755912824167,-400.0,0.00018904,2]
[380964198,1755912824182,-454.18,0.00018904,2]
[380964199,1755912824196,-408.41,0.00018904,2]
[380964200,1755912824210,-429.23,0.00018904,2]
[380964201,1755912824224,-400.0,0.00018904,2]
[380964202,1755912824237,-400.0,0.00018904,2]
[380964203,1755912824251,-582.37,0.00018904,2]
[380964204,1755912824265,-238.18485356,0.00018904,2]
[380964205,1755912824280,-759.88,0.00018904,2]
[380964206,1755912824294,-591.39,0.00018904,2]
[380964207,1755912824309,-413.97,0.00018904,2]
[380964208,1755912824323,-649.74,0.00018904,2]
[380964209,1755912824338,-506.47,0.00018904,2]
[380964210,1755912824352,-446.38,0.00018904,2]
[380964211,1755912824367,-715.02,0.00018904,2]
[380964212,1755912824382,-537.25,0.00018904,2]
[380964213,1755912824395,-400.0,0.00018904,2]
[380964214,1755912824410,-512.45,0.00018904,2]
[380964215,1755912824428,-527.41,0.00018904,2]
[380964216,1755912824442,-329.97463492,0.00018904,2]
[380964217,1755912824457,-521.1,0.00018904,2]
[380964218,1755912824472,-446.92,0.00018904,2]
[380964219,1755912824486,-449.44,0.00018904,2]
[380964220,1755912824501,-675.1,0.00018904,2]
[380964221,1755912824516,-400.0,0.00018904,2]
[380964222,1755912824530,-654.03,0.00018904,2]
[380964223,1755912824545,-609.3,0.00018904,2]
[380964224,1755912824559,-661.96,0.00018904,2]
[380964225,1755912824574,-568.98,0.00018904,2]
[380964226,1755912824589,-400.0,0.00018904,2]
[380964227,1755912824603,-400.0,0.00018904,2]
[380964228,1755912824618,-709.86,0.00018904,2]
[380964229,1755912824632,-812.84,0.00018904,2]
[380964230,1755912824646,-437.4,0.00018904,2]
[380964231,1755912824660,-586.38,0.00018904,2]
[380964232,1755912824672,-442.27,0.00018904,2]
[380964233,1755912824686,-562.61,0.00018904,2]
[380964234,1755912824701,-400.0,0.00018904,2]
[380964235,1755912824715,-231.24910008,0.00018904,2]
[380964236,1755912824729,-845.65,0.00018904,2]
[380964237,1755912824743,-441.24,0.00018904,2]
[380964238,1755912824756,-529.98,0.00018904,2]
[380964239,1755912824771,-570.39,0.00018904,2]
[380964240,1755912824784,-400.0,0.00018904,2]
[380964241,1755912824800,-421.77,0.00018904,2]
[380964242,1755912824833,-400.0,0.00018904,2]
[380964243,1755912824847,-400.0,0.00018904,2]
[380964244,1755912824862,-504.57715287,0.00018904,2]
[380964245,1755912824876,-464.48,0.00018904,2]
[380964246,1755912824890,-415.36,0.00018904,2]
[380964247,1755912824905,-530.98,0.00018904,2]
[380964248,1755912824919,-512.43,0.00018904,2]
[380964249,1755912824934,-516.79,0.00018904,2]
[380964250,1755912824948,-400.0,0.00018904,2]
[380964251,1755912824961,-373.50485415,0.00018904,2]
[380964252,1755912824975,-400.0,0.00018904,2]
[380964253,1755912824990,-409.44,0.00018904,2]
[380964254,1755912825005,-499.57,0.00018904,2]
[380964255,1755912825018,-577.94,0.00018904,2]
[380964256,1755912825032,-400.0,0.00018904,2]
[380964257,1755912825047,-476.9,0.00018904,2]
[380964258,1755912825062,-637.7,0.00018904,2]
[380964259,1755912825075,-423.83,0.00018904,2]
[380964260,1755912825089,-459.29,0.00018904,2]
[380964261,1755912825103,-873.47,0.00018904,2]
[380964262,1755912825118,-571.62,0.00018904,2]
[380964263,1755912825132,-409.95,0.00018904,2]
[380964264,1755912825146,-1704.41,0.00018904,2]
[380964265,1755912825160,-549.98,0.00018904,2]
[380964266,1755912825173,-400.0,0.00018904,2]
[380964267,1755912825187,-400.0,0.00018904,2]
[380964268,1755912825201,-531.47,0.00018904,2]